bitfinex/quotes_ETHUSD_20240711
["timestamp","ask_amount","ask_price","bid_price","bid_amount"]
[1720740562311,1.00371093,3102.1,3101.8,0.46168664]
[1720740562480,1.11646065,3102.0,3101.8,0.46168664]
[1720740562804,1.00371093,3102.1,3101.8,0.46168664]
[1720740562998,1.11646237,3102.0,3101.7,1.39274636]
[1720740563207,1.00371093,3102.1,3101.7,1.39274636]
[1720740563406,1.11647088,3102.0,3101.5,7.4791736]
[1720740563571,2.299,3101.9,3101.5,7.4791736]
[1720740563767,1.00371093,3101.8,3101.0,3.22469]
[1720740563971,1.00371093,3101.6,3101.1,1.07038636]
[1720740564279,1.11656062,3101.5,3101.1,1.07038636]
[1720740564996,2.12027155,3101.5,3101.1,1.07038636]
[1720740565163,1.1167052,3101.4,3101.1,1.07038636]
[1720740565364,1.00371093,3101.6,3101.1,1.07038636]
[1720740565604,1.11669604,3101.5,3101.2,0.42950764]
[1720740565806,1.00371093,3101.7,3101.2,0.42950764]
[1720740566016,1.11663841,3101.6,3101.2,0.42950764]
[1720740566168,1.00371093,3101.7,3101.2,0.42950764]
[1720740566564,1.11663818,3101.6,3101.2,0.42950764]
[1720740566799,1.00371093,3101.8,3101.3,0.4724534]
[1720740567011,3.30271093,3101.9,3101.3,0.4724534]
[1720740567225,1.11658801,3101.8,3101.3,0.4724534]
[1720740567369,1.11658801,3101.7,3101.3,0.4724534]
[1720740567715,1.11662986,3101.6,3101.3,0.4724534]
[1720740568014,1.00453731,3101.8,3101.3,0.4724534]
[1720740568168,1.11661784,3101.7,3101.3,0.4724534]
[1720740568366,1.11661784,3101.6,3101.3,0.47326596]
[1720740568577,1.11661784,3101.6,3101.3,0.00081256]
[1720740569003,1.00453731,3101.6,3101.3,0.00081256]
[1720740569216,1.11668628,3101.5,3101.3,0.00081256]
[1720740569506,1.00444824,3101.6,3101.3,0.00081256]
[1720740569824,1.11671324,3101.5,3101.3,0.00081256]
[1720740569976,1.00444824,3101.6,3101.3,0.00081256]
[1720740570325,1.11671196,3101.5,3101.3,0.00081256]
[1720740570505,1.00435855,3101.6,3101.3,0.00081256]
[1720740570690,1.11670857,3101.5,3101.3,0.00081256]
[1720740571014,1.00435855,3101.6,3101.3,0.00081256]
[1720740571169,1.00435855,3101.7,3101.3,0.00081256]
[1720740571368,1.33914474,3101.8,3101.3,0.00081256]
[1720740571369,1.00435855,3101.8,3101.3,0.64581382]
[1720740571672,1.1166421,3101.7,3101.3,0.64581382]
[1720740571867,1.00435855,3101.8,3101.3,0.64581382]
[1720740572068,1.11662076,3101.7,3101.3,0.64581382]
[1720740572310,1.00435855,3101.8,3101.3,0.64581382]
[1720740572511,2.12098994,3101.7,3101.3,0.64581382]
[1720740572674,1.00435855,3101.7,3101.3,0.00081256]
[1720740573385,1.00435855,3101.5,3101.3,0.00081256]
[1720740573726,2.12102528,3101.4,3101.3,0.00081256]
[1720740573916,2.12148999,3101.4,3101.3,0.00081256]
[1720740574718,1.11677278,3101.4,3101.3,0.00081256]
[1720740574951,1.00471721,3101.5,3101.3,0.00081256]
[1720740576359,2.12145734,3101.4,3101.3,0.00081256]
[1720740576528,3.38044013,3101.4,3101.3,0.00081256]
[1720740576714,4.72078092,3101.4,3101.3,0.00081256]
[1720740576914,4.72077082,3101.4,3101.3,0.00081256]
[1720740577246,3.38052448,3101.4,3101.3,0.00081256]
[1720740577422,10.60490251,3101.4,3101.3,0.00081256]
[1720740577767,10.60507709,3101.4,3101.3,0.00081256]
[1720740580420,10.60507709,3101.4,3100.9,7.4791736]
[1720740580421,6.44952,3101.0,3100.9,7.4791736]
[1720740580623,6.44952,3101.0,3100.4,7.4791736]
[1720740580624,3.22526,3100.6,3100.4,7.4791736]
[1720740580824,5.39937021,3100.5,3100.4,7.4791736]
[1720740581354,5.39843927,3100.5,3100.4,7.4791736]
[1720740581549,4.06104106,3100.5,3100.4,7.4791736]
[1720740581751,4.41916341,3100.5,3100.4,7.4791736]
[1720740581914,3.30216435,3100.5,3100.4,7.4791736]
[1720740582446,2.299,3100.5,3100.4,7.4791736]
[1720740583534,1.00316435,3100.8,3100.4,7.4791736]
[1720740583735,3.30216435,3100.9,3100.4,9.9697736]
[1720740583942,2.299,3100.9,3100.5,4.54477536]
[1720740584147,1.33752907,3101.2,3100.6,3.22511]
[1720740584148,1.00316435,3101.2,3100.6,3.22511]
[1720740584347,3.30216435,3101.3,3100.6,3.22511]
[1720740585120,3.30216435,3101.3,3100.5,4.54477536]
[1720740585121,2.12003729,3101.2,3100.5,4.54477536]
[1720740585355,1.00316435,3101.2,3100.5,4.54477536]
[1720740585557,3.30216435,3101.3,3100.6,4.6766049]
[1720740585744,3.30216435,3101.3,3100.6,1.4514549]
[1720740586058,2.12008759,3101.2,3100.6,1.4514549]
[1720740586256,1.00316435,3101.2,3100.6,1.4514549]
[1720740587028,3.30216435,3101.3,3100.7,3.22507]
[1720740587265,2.299,3101.3,3100.7,4.01524849]
[1720740587838,1.00316435,3101.5,3100.9,3.22482]
[1720740588054,3.30216435,3101.7,3101.0,2.2774]
[1720740588367,2.299,3101.7,3101.1,3.774872]
[1720740589726,3.30216435,3101.7,3101.1,0.550222]
[1720740589942,3.30216435,3101.7,3100.9,6.44963]
[1720740590144,1.00331483,3101.6,3100.9,6.44962]
[1720740590388,2.120028,3101.6,3100.9,6.44962]
[1720740590584,2.299,3101.7,3101.0,3.22474]
[1720740590783,2.12005487,3101.6,3101.0,3.22474]
[1720740590946,1.00332794,3101.6,3101.0,3.22474]
[1720740591351,1.00332794,3101.6,3101.1,3.22463]
[1720740591682,3.30232794,3101.7,3101.1,3.22463]
[1720740592391,1.11667699,3101.6,3101.1,3.22463]
[1720740592598,3.30232794,3101.7,3101.1,3.22463]
[1720740592901,1.11668346,3101.6,3101.1,3.22463]
[1720740593110,2.299,3101.7,3101.3,3.22442]
[1720740593263,1.00332794,3101.9,3101.3,3.22442]
[1720740593463,1.00332794,3102.0,3101.3,3.61362318]
[1720740593764,1.11657936,3101.9,3101.3,3.61362318]
[1720740593961,1.00332794,3102.0,3101.3,3.61362318]
[1720740594191,1.11657513,3101.9,3101.3,3.61362318]
[1720740594498,1.00332794,3102.0,3101.3,3.61362318]
[1720740594798,2.11990595,3101.9,3101.3,3.61362318]
[1720740595094,1.11657801,3101.8,3101.3,3.61362318]
[1720740595501,1.00332794,3101.9,3101.3,3.61362318]
[1720740595683,1.00332794,3102.0,3101.3,3.61362318]
[1720740596278,1.00332794,3102.0,3101.5,3.22423]
[1720740596482,3.30232794,3102.1,3101.4,0.5990907]
[1720740596677,2.299,3102.1,3101.4,3.22429]
[1720740596872,3.30232794,3102.1,3101.6,3.22404]
[1720740597267,3.30232794,3102.1,3101.6,6.44812]
[1720740597466,3.30232794,3102.1,3101.7,3.22401]
[1720740597667,2.299,3102.1,3101.7,3.22401]
[1720740598267,3.30232794,3102.1,3101.7,3.22401]
[1720740598469,2.299,3102.1,3101.7,3.22401]
[1720740598669,2.299,3102.1,3101.8,3.22391]
[1720740598869,1.00332794,3102.2,3101.8,3.22391]
[1720740599959,1.00332794,3102.3,3101.6,6.44808]
[1720740600239,2.12064777,3102.2,3101.7,3.22403]
[1720740600452,1.00417516,3102.2,3101.5,3.22418]
[1720740600631,1.00417516,3102.2,3101.4,3.22428]
[1720740600632,1.00417516,3102.1,3101.4,6.44857]
[1720740600831,1.00417516,3101.9,3101.4,6.44857]
[1720740601000,1.00417516,3101.9,3101.5,3.22421]
[1720740601205,1.00417516,3102.0,3101.7,3.22403]
[1720740601425,3.30317516,3102.1,3101.7,6.44799]
[1720740601745,1.00417516,3102.2,3101.7,6.44793]
[1720740601915,1.00417516,3102.2,3101.8,3.2239]
[1720740603012,1.00417516,3102.2,3101.5,3.22418]
[1720740603236,1.00417516,3102.0,3101.4,3.22434]
[1720740603535,1.00417516,3101.9,3101.4,3.22434]
[1720740604110,1.00417516,3101.9,3101.5,3.22423]
[1720740604314,1.00417516,3101.9,3101.5,3.869087]
[1720740605643,1.00417516,3102.1,3101.8,3.22389]
[1720740605959,2.299,3102.5,3102.0,3.22371]
[1720740605960,1.00417516,3102.4,3102.0,3.22371]
[1720740606169,1.00417516,3102.4,3101.8,3.22389]
[1720740606170,1.00417516,3102.2,3101.8,3.22389]
[1720740606462,1.00417516,3102.1,3101.8,3.22389]
[1720740607161,1.00417516,3102.2,3101.8,3.22389]
[1720740607334,1.00417516,3102.3,3101.8,3.22387]
[1720740607554,1.00417516,3102.4,3101.9,3.546147]
[1720740607746,1.00417516,3102.4,3101.8,3.22386]
[1720740607950,1.00417516,3102.2,3101.8,3.22386]
[1720740608339,3.30317516,3102.1,3101.2,7.4791736]
[1720740608534,1.00417516,3101.7,3101.4,3.22433]
[1720740608734,1.00417516,3101.9,3101.7,3.22398]
[1720740609003,1.67433326,3102.2,3101.7,3.22398]
[1720740609004,1.00417516,3102.0,3101.7,3.22398]
[1720740609137,1.00417516,3102.1,3101.8,3.22392]
[1720740609335,1.00417516,3102.2,3101.8,3.22392]
[1720740609958,1.00417516,3102.3,3101.8,3.22392]
[1720740610151,1.00417516,3102.2,3101.8,3.22392]
[1720740610465,1.00417516,3102.1,3101.4,3.22433]
[1720740610780,1.00417516,3102.0,3101.5,3.22418]
[1720740611777,3.30317516,3102.1,3101.5,3.22418]
[1720740611979,1.00417516,3102.0,3101.5,3.22418]
[1720740612278,2.299,3102.1,3101.5,3.22418]
[1720740612279,3.30317516,3102.1,3101.5,3.22418]
[1720740612478,1.00417516,3102.0,3101.5,3.22418]
[1720740612869,3.30317516,3102.1,3101.5,3.22418]
[1720740613173,3.30317516,3102.1,3101.2,13.9281936]
[1720740613174,2.12070086,3102.0,3101.2,13.9281936]
[1720740613478,1.1165257,3101.9,3101.0,3.22475]
[1720740613685,1.1165257,3101.9,3100.9,7.4791736]
[1720740613686,1.00417516,3101.5,3100.9,7.4791736]
[1720740613884,1.1165257,3101.4,3100.9,7.4791736]
[1720740614067,2.12070086,3101.4,3100.9,7.4791736]
[1720740614273,1.1165257,3101.3,3100.9,10.7040336]
[1720740614457,2.447,3101.2,3100.3,7.4791736]
[1720740614658,1.00417516,3101.0,3100.3,10.7045936]
[1720740614858,2.12070086,3100.9,3100.3,7.4791736]
[1720740615044,2.12070086,3100.8,3100.3,7.4791736]
[1720740615247,1.33890021,3100.9,3100.3,7.4791736]
[1720740615248,2.12070086,3100.7,3100.3,7.4791736]
[1720740615458,1.00417516,3100.7,3100.3,7.4791736]
[1720740615647,1.11707533,3100.6,3100.3,7.4791736]
[1720740615843,1.00417516,3100.6,3100.3,7.4791736]
[1720740616153,1.00417516,3100.7,3100.3,7.4791736]
[1720740616361,1.11707423,3100.6,3100.3,7.4791736]
[1720740616568,1.00417516,3100.7,3100.3,7.4791736]
[1720740617249,1.00417516,3100.8,3100.3,7.4791736]
[1720740617775,3.30317516,3100.9,3100.3,12.09767896]
[1720740619806,1.1166891,3101.5,3101.1,3.22465]
[1720740620025,1.00417516,3101.6,3101.1,3.22465]
[1720740621912,1.00417516,3101.6,3101.3,3.22443]
[1720740622109,1.00417516,3101.9,3101.5,3.22424]
[1720740622315,1.00417516,3102.0,3101.5,3.22424]
[1720740622876,3.97169835,3102.3,3100.9,3.22483]
[1720740622877,1.00417516,3102.1,3101.8,3.22386]
[1720740623207,1.00417516,3102.2,3101.6,3.22404]
[1720740623412,2.12066901,3102.1,3101.6,3.22404]
[1720740623607,1.11649385,3102.0,3101.6,3.22404]
[1720740623808,1.11649385,3102.0,3101.7,3.22403]
[1720740624117,1.11649385,3102.0,3101.6,3.22404]
[1720740624118,1.00417516,3102.2,3101.8,3.22392]
[1720740624411,2.299,3102.3,3101.8,6.44776]
[1720740624412,3.30317516,3102.3,3101.8,6.44776]
[1720740624576,2.299,3102.3,3101.9,3.22381]
[1720740624778,1.00417516,3102.4,3101.9,3.22381]
[1720740624985,1.00417516,3102.5,3102.4,3.22331]
[1720740625285,2.299,3103.1,3102.4,3.22331]
[1720740625625,2.1201962,3103.0,3102.4,3.22331]
[1720740625913,1.00393743,3103.1,3102.6,3.22303]
[1720740626324,1.00393743,3103.2,3102.7,3.22299]
[1720740626494,1.00393743,3103.4,3102.9,3.2227]
[1720740627018,3.30293743,3103.5,3102.9,6.44543]
[1720740627238,1.00393743,3103.6,3103.2,3.22246]
[1720740627413,1.00393743,3103.9,3103.3,3.2223]
[1720740627610,0.16732327,3103.8,3103.3,3.2223]
[1720740628206,1.1712607,3103.8,3103.3,3.2223]
[1720740628521,0.16732327,3103.8,3103.3,3.2223]
[1720740628882,0.16732327,3103.8,3103.2,3.22242]
[1720740629389,1.17076545,3103.8,3103.2,3.22242]
[1720740629585,0.16732327,3103.8,3103.2,3.22242]
[1720740630321,1.00344218,3103.9,3103.2,3.22242]
[1720740630520,1.00344218,3104.1,3103.2,3.22242]
[1720740631028,4.22502218,3104.1,3103.2,3.22242]
[1720740631433,1.00344218,3104.1,3103.2,3.22242]
[1720740631732,1.00344218,3104.4,3103.8,3.22185]
[1720740631930,0.73375836,3104.4,3103.8,3.22185]
[1720740632132,2.299,3104.6,3104.0,3.22162]
[1720740632526,2.299,3104.6,3103.8,3.22177]
[1720740632697,2.299,3104.6,3103.9,3.22173]
[1720740633854,2.299,3104.6,3104.0,3.22164]
[1720740634006,2.299,3105.0,3104.1,0.32860688]
[1720740634352,2.299,3105.0,3103.7,7.4791736]
[1720740634514,2.299,3104.6,3103.8,3.22183]
[1720740635233,2.299,3104.6,3103.9,3.22174]
[1720740638103,2.299,3104.6,3103.7,7.4791736]
[1720740638304,4.5757,3104.6,3103.7,7.4791736]
[1720740638642,3.22156,3104.1,3103.7,7.4791736]
[1720740639139,5.52051,3104.2,3103.7,7.4791736]
[1720740639140,2.299,3104.2,3103.7,7.4791736]
[1720740639818,3.779664,3104.5,3103.7,7.4791736]
[1720740640156,7.000804,3104.5,3103.7,7.4791736]
[1720740640510,3.22125,3104.4,3103.7,7.4791736]
[1720740640817,0.7000914,3104.3,3103.7,7.4791736]
[1720740643346,3.779664,3104.5,3103.7,7.4791736]
[1720740643531,3.22127,3104.4,3103.7,7.4791736]
[1720740643716,3.779664,3104.5,3103.7,7.4791736]
[1720740643922,3.22128,3104.4,3103.7,7.4791736]
[1720740644323,3.22142,3104.3,3103.7,7.4791736]
[1720740644532,0.64427,3104.2,3103.7,7.4791736]
[1720740645140,3.22128,3104.4,3103.7,7.4791736]
[1720740645648,3.779664,3104.5,3103.7,7.4791736]
[1720740645649,3.22135,3104.3,3103.7,7.4791736]
[1720740646145,7.000884,3104.5,3103.7,7.4791736]
[1720740646347,0.779664,3104.5,3103.7,7.4791736]
[1720740646554,2.299,3104.6,3103.8,3.22179]
[1720740647049,0.99934784,3105.4,3103.8,3.22179]
[1720740647050,2.299,3105.1,3103.9,0.55]
[1720740647210,2.299,3105.1,3104.3,3.22126]
[1720740647411,0.551941,3105.0,3104.3,3.22126]
[1720740647647,0.551941,3105.0,3104.3,6.44252]
[1720740647835,0.551941,3105.0,3104.3,3.22124]
[1720740648037,2.299,3105.1,3104.3,3.22124]
[1720740648936,5.299,3105.1,3104.3,3.22124]
[1720740649818,5.299,3105.1,3104.4,3.22121]
[1720740650022,2.299,3105.1,3104.4,3.22121]
[1720740650216,2.299,3105.5,3104.5,3.22112]
[1720740650415,2.299,3105.5,3104.8,3.22073]
[1720740650671,2.299,3105.5,3104.4,7.4791736]
[1720740650963,2.299,3105.1,3104.4,7.4791736]
[1720740654363,2.299,3105.1,3104.4,10.7003836]
[1720740655521,8.73932,3105.5,3104.4,13.9215536]
[1720740655721,4.33565175,3105.4,3104.5,1.39215536]
[1720740655966,3.22041,3105.2,3104.5,1.39215536]
[1720740656269,1.11543547,3105.1,3104.5,1.39215536]
[1720740656495,3.22041,3105.2,3104.5,1.39215536]
[1720740656651,3.22041,3105.2,3104.4,7.4791736]
[1720740656652,1.11546185,3105.1,3104.4,7.4791736]
[1720740656847,1.11545592,3105.0,3104.4,10.7003936]
[1720740657063,3.22039,3105.3,3104.4,10.7003936]
[1720740657261,1.11547225,3105.2,3104.4,12.33595996]
[1720740657568,1.1154933,3105.1,3104.4,12.33595996]
[1720740657891,1.1154933,3105.0,3104.4,12.33595996]
[1720740658191,3.22046,3105.2,3104.4,12.33595996]
[1720740658402,3.22046,3105.2,3104.4,9.11473996]
[1720740658547,1.11548665,3105.1,3104.4,9.11473996]
[1720740658750,1.11548665,3105.0,3104.4,9.11473996]
[1720740658991,3.22046,3105.2,3104.4,9.11473996]
[1720740659192,4.33600224,3105.1,3104.4,9.11473996]
[1720740659498,1.11548224,3105.0,3104.4,9.11473996]
[1720740660048,4.33609224,3105.0,3104.4,9.11473996]
[1720740660245,1.11548224,3104.9,3103.9,7.4791736]
[1720740660495,3.22109,3104.6,3103.9,7.4791736]
[1720740660648,1.11548224,3104.5,3103.9,7.4791736]
[1720740661176,3.22109,3104.6,3103.5,7.4791736]
[1720740661177,4.33701211,3104.4,3103.5,7.4791736]
[1720740661388,3.2218,3103.9,3103.5,7.4791736]
[1720740661585,3.2218,3103.9,3102.9,9.7950736]
[1720740661901,1.11572211,3103.8,3103.0,3.22262]
[1720740662477,1.11572211,3103.8,3102.9,9.7950736]
[1720740662674,3.22144,3104.2,3103.3,3.2223]
[1720740662862,1.11587099,3104.1,3103.3,3.866771]
[1720740663163,2.73270121,3104.3,3103.4,3.2222]
[1720740663365,1.11580059,3104.2,3103.4,6.44439]
[1720740663570,2.73270121,3104.3,3103.4,6.44438]
[1720740663571,1.11580059,3104.1,3103.4,6.44438]
[1720740663783,2.299,3104.7,3103.7,3.22185]
[1720740663960,1.11570234,3104.6,3103.9,3.22173]
[1720740664157,1.11567096,3104.5,3103.9,6.44346]
[1720740664394,2.5289,3104.7,3103.9,3.22173]
[1720740664395,2.299,3104.7,3103.9,3.22173]
[1720740664612,2.299,3105.1,3104.0,0.55]
[1720740664753,2.299,3105.1,3104.3,3.22131]
[1720740664754,1.11551607,3105.0,3104.3,3.22131]
[1720740664955,1.11551607,3104.9,3104.1,3.22146]
[1720740665153,1.11551607,3104.9,3103.9,3.22172]
[1720740665154,0.34145161,3104.9,3103.9,3.22166]
[1720740666602,1.11551607,3104.5,3103.7,3.22195]
[1720740666757,1.11551607,3104.6,3103.7,3.22195]
[1720740666959,1.1156996,3104.5,3103.7,3.22195]
[1720740667156,1.1156996,3104.4,3103.7,3.22195]
[1720740667400,3.22105,3104.6,3103.6,13.0302036]
[1720740667552,5.12373716,3104.5,3103.6,7.4791736]
[1720740667894,4.33698216,3104.4,3103.6,7.4791736]
[1720740668058,1.11574216,3104.3,3103.6,7.4791736]
[1720740668855,3.22151,3104.2,3103.6,7.4791736]
[1720740669062,3.22182,3103.9,3103.6,7.4791736]
[1720740669260,3.22182,3103.9,3102.9,3.22273]
[1720740669261,3.22212,3103.6,3102.9,7.4791736]
[1720740669481,3.41474216,3103.5,3102.9,7.4791736]
[1720740669694,4.5472305,3103.8,3102.9,7.4791736]
[1720740669695,3.544042,3103.8,3102.9,7.4791736]
[1720740669857,3.3021885,3103.9,3103.4,3.22218]
[1720740669858,1.11600619,3103.7,3103.4,3.22218]
[1720740670054,1.0031885,3104.2,3103.0,5.64249]
[1720740670267,3.22171,3104.0,3103.1,3.22256]
[1720740670490,3.22188,3103.8,3102.9,7.4791736]
[1720740670708,1.11603243,3103.7,3102.9,7.4791736]
[1720740670870,1.11603243,3103.6,3103.0,3.22267]
[1720740671206,1.0031885,3103.9,3103.2,3.22245]
[1720740671559,1.11594405,3103.8,3103.2,3.22245]
[1720740671762,1.0031885,3103.9,3103.2,3.22245]
[1720740671960,1.11594596,3103.8,3103.2,3.22245]
[1720740672193,1.0031885,3103.9,3103.2,3.22245]
[1720740672408,1.0031885,3103.8,3103.2,3.22245]
[1720740673297,1.0031885,3104.0,3103.3,6.766925]
[1720740673496,1.0031885,3104.0,3103.3,6.766885]
[1720740673696,1.0031885,3103.9,3103.3,3.544565]
[1720740674799,1.0031885,3103.9,3103.3,6.766875]
[1720740676498,1.0031885,3104.1,3103.7,3.22186]
[1720740676704,1.0031885,3104.3,3103.5,0.06443085]
[1720740677005,1.0031885,3104.5,3104.0,3.22156]
[1720740677313,1.0031885,3104.5,3104.0,7.087474]
[1720740677606,1.0031885,3104.5,3104.2,3.22143]
[1720740677908,1.0031885,3104.6,3104.2,3.22143]
[1720740678263,1.0031885,3104.5,3104.1,2.4863]
[1720740678966,1.0031885,3104.5,3104.1,5.70782]
[1720740679161,1.0031885,3104.5,3104.1,6.6651914]
[1720740679396,1.0031885,3104.5,3104.2,6.44288]
[1720740679590,1.0031885,3104.5,3104.2,3.22144]
[1720740680680,1.0031885,3104.5,3104.1,3.4436714]
[1720740681000,1.0031885,3104.4,3104.1,0.9573714]
[1720740681202,1.0031885,3104.4,3104.0,6.44314]
[1720740681373,1.0031885,3104.4,3104.2,3.22143]
[1720740682205,1.0031885,3104.4,3104.0,3.22156]
[1720740682419,1.0031885,3104.4,3104.0,6.44315]
[1720740682623,1.0031885,3104.4,3104.0,7.83538236]
[1720740682913,1.0031885,3104.4,3104.0,1.39223236]
[1720740683086,1.0031885,3104.2,3103.8,7.4791736]
[1720740683291,1.0031885,3104.1,3103.8,7.4791736]
[1720740683491,1.0031885,3104.0,3103.8,7.4791736]
[1720740683692,1.0031885,3103.9,3103.8,7.4791736]
[1720740684095,1.0031885,3104.0,3103.8,7.4791736]
[1720740684613,1.0064996,3104.0,3103.8,7.4791736]
[1720740684833,6.01510333,3103.9,3103.0,7.4791736]
[1720740684986,1.00644444,3103.4,3103.0,7.4791736]
[1720740685182,1.00644444,3103.3,3102.7,3.22293]
[1720740685487,1.00644444,3103.3,3102.9,3.22278]
[1720740685699,1.00644444,3103.4,3103.0,0.322278]
[1720740685915,1.00644444,3103.4,3102.9,3.22278]
[1720740687424,1.00644444,3103.2,3102.7,3.2229]
[1720740687798,1.00644444,3103.3,3102.8,3.22288]
[1720740688102,1.00644444,3103.4,3102.9,3.22277]
[1720740691218,1.00644444,3103.3,3102.6,3.22308]
[1720740691385,1.00644444,3103.2,3102.5,3.22314]
[1720740691781,1.00644444,3103.2,3102.5,6.44628]
[1720740692283,5.53528,3103.1,3102.3,7.4791736]
[1720740692491,5.53528,3103.1,3101.8,7.4791736]
[1720740692492,1.00644444,3102.6,3101.8,7.4791736]
[1720740692685,3.22353,3102.2,3101.8,7.4791736]
[1720740692891,2.1225853,3102.1,3101.8,7.4791736]
[1720740693127,1.11656173,3102.0,3101.8,7.4791736]
[1720740693324,1.00644444,3102.1,3101.8,7.4791736]
[1720740693621,2.299,3102.0,3101.1,7.4791736]
[1720740693829,4.22888914,3101.8,3101.1,7.4791736]
[1720740694128,2.299,3101.6,3101.1,7.4791736]
[1720740694419,1.00494914,3101.5,3101.1,7.4791736]
[1720740694623,1.00494914,3101.4,3101.1,7.4791736]
[1720740694825,3.22425,3101.5,3101.1,7.4791736]
[1720740695318,5.01601227,3101.5,3101.1,7.4791736]
[1720740695620,4.01106313,3101.5,3101.1,7.4791736]
[1720740697026,1.00494914,3102.0,3101.1,7.4791736]
[1720740697223,3.22411,3101.7,3101.1,7.4791736]
[1720740697408,3.22411,3101.7,3100.8,3.22493]
[1720740697605,3.2242,3101.6,3100.8,3.22493]
[1720740698324,3.22411,3101.7,3100.8,3.22493]
[1720740698618,3.22411,3101.7,3100.8,4.61785836]
[1720740698795,6.44823,3101.7,3100.8,4.61785836]
[1720740699419,3.22417,3101.6,3100.8,4.61785836]
[1720740699826,3.22417,3101.6,3100.8,3.22493]
[1720740700432,3.22417,3101.6,3100.7,10.7042436]
[1720740700614,3.22436,3101.4,3100.7,7.4791736]
[1720740702695,3.22456,3101.2,3100.7,7.4791736]
[1720740702894,3.22456,3101.2,3100.3,18.74086]
[1720740703094,3.22456,3101.2,3100.4,5.84736336]
[1720740703306,3.22456,3101.2,3100.3,12.29]
[1720740703931,6.44919,3101.2,3100.3,12.29]
[1720740704114,3.22456,3101.2,3100.3,12.29]
[1720740705257,3.22506,3100.8,3100.2,7.4791736]
[1720740705432,6.45012,3100.8,3100.2,7.4791736]
[1720740705832,6.29881,3101.0,3100.2,7.4791736]
[1720740706159,6.29881,3101.0,3100.2,8.22709096]
[1720740707456,3.2244,3101.4,3100.2,11.45268096]
[1720740707457,6.29842,3101.4,3100.2,11.45268096]
[1720740707654,6.29842,3101.4,3100.4,3.22535]
[1720740707825,3.22457,3101.2,3100.2,11.45261096]
[1720740708020,6.4492,3101.2,3100.3,1.1452611]
[1720740708233,3.22489,3100.9,3100.2,7.4791736]
[1720740708558,6.29844,3101.4,3100.4,3.22533]
[1720740708725,3.22445,3101.3,3100.4,3.22533]
[1720740709044,3.074,3101.4,3100.6,3.2251]
[1720740710061,3.074,3101.4,3100.6,6.45021]
[1720740710273,3.074,3101.4,3100.6,3.2251]
[1720740710479,4.26168402,3101.4,3100.6,3.2251]
[1720740710685,4.26168402,3101.4,3100.7,3.22504]
[1720740710857,2.4824,3101.5,3100.7,3.22504]
[1720740711171,5.4824,3101.5,3100.7,3.22504]
[1720740711777,3.074,3101.8,3100.8,5.62636]
[1720740711939,3.074,3102.2,3101.2,3.22455]
[1720740712146,3.22368,3102.1,3101.2,3.22455]
[1720740712358,3.22368,3102.1,3101.3,1.07037236]
[1720740712739,3.074,3102.2,3101.3,4.29475236]
[1720740712944,6.29752,3102.2,3101.4,3.22428]
[1720740713146,6.29752,3102.2,3101.3,1.07037236]
[1720740713345,3.22376,3102.0,3101.1,7.4791736]
[1720740713586,3.074,3101.8,3101.1,7.4791736]
[1720740713745,3.22405,3101.7,3101.1,7.4791736]
[1720740714180,3.22414,3101.6,3100.6,10.7042836]
[1720740714382,3.22414,3101.6,3100.6,7.4791736]
[1720740714594,4.176359,3101.6,3100.6,7.4791736]
[1720740714785,4.176359,3101.6,3100.1,3.22568]
[1720740714786,3.074,3100.7,3099.9,7.4791736]
[1720740715090,3.074,3100.1,3099.5,19.7691736]
[1720740715248,0.62995,3100.1,3099.5,19.7691736]
[1720740715579,3.074,3100.1,3099.5,19.7691736]
[1720740716279,6.29978,3100.1,3099.5,19.7691736]
[1720740716494,3.22588,3100.0,3099.5,19.7691736]
[1720740716681,6.29978,3100.1,3099.0,7.4791736]
[1720740716894,6.45182,3099.9,3099.0,7.4791736]
[1720740717044,7.404402,3099.9,3099.0,7.4791736]
[1720740717442,8.52190098,3099.9,3099.0,7.4791736]
[1720740718447,8.52190098,3099.9,3098.6,7.4791736]
[1720740718448,3.22665,3099.2,3098.6,7.4791736]
[1720740718677,3.22665,3099.2,3098.3,3.22838106]
[1720740718678,3.074,3098.9,3098.3,3.22838106]
[1720740718872,3.074,3098.9,3098.3,2.62334153]
[1720740719082,3.074,3098.9,3098.4,3.22741]
[1720740719860,3.074,3098.9,3098.3,2.62334153]
[1720740720066,3.074,3099.7,3098.9,3.22686]
[1720740720311,1.1174999,3099.6,3098.9,3.22686]
[1720740720613,1.11748696,3099.5,3098.8,3.22703]
[1720740720815,1.11748696,3099.4,3098.7,3.22712]
[1720740721101,1.11748696,3099.4,3098.3,0.00082106]
[1720740721102,3.074,3099.3,3098.3,0.00082106]
[1720740721413,1.11748696,3099.2,3098.3,1.76536619]
[1720740721578,3.074,3099.7,3099.1,3.22674]
[1720740721764,1.1174578,3099.6,3099.1,3.22674]
[1720740721964,1.1174578,3099.5,3098.9,3.22686]
[1720740722175,3.074,3099.7,3099.0,3.22684]
[1720740722372,3.074,3099.7,3099.0,3.22676]
[1720740722575,1.11741836,3099.6,3099.0,3.872138]
[1720740722775,6.2997,3100.1,3099.2,3.22657]
[1720740722994,6.2997,3100.1,3099.0,3.2268]
[1720740722995,1.11735179,3100.0,3099.1,7.4791736]
[1720740723195,1.11735179,3099.9,3099.1,7.4791736]
[1720740723414,1.11735179,3100.0,3099.1,7.4791736]
[1720740723567,6.2997,3100.1,3099.1,7.4791736]
[1720740723568,1.11735179,3099.8,3099.1,7.4791736]
[1720740723910,1.11735179,3099.7,3099.1,7.4791736]
[1720740724072,3.22638,3099.5,3098.5,10.7064436]
[1720740724400,1.11735179,3099.4,3098.5,10.7064436]
[1720740724617,4.34380179,3099.4,3098.5,10.7064436]
[1720740724768,1.11735179,3099.3,3098.5,10.7064436]
[1720740724968,1.11735179,3099.3,3098.7,3.22713]
[1720740725171,3.074,3099.6,3098.8,3.22704]
[1720740725172,1.11735179,3099.5,3098.8,3.22704]
[1720740725571,4.34372179,3099.5,3098.5,10.7064936]
[1720740725803,1.11761005,3099.4,3098.5,10.7064936]
[1720740726006,1.11768705,3099.4,3098.5,10.7064936]
[1720740726169,3.074,3099.2,3098.5,10.7064936]
[1720740726613,1.1176233,3099.1,3098.5,10.7064936]
[1720740726917,1.1176233,3099.0,3098.5,10.7064936]
[1720740727120,1.1176233,3098.9,3098.5,10.7064936]
[1720740727328,3.074,3099.2,3098.5,3.22732]